bitfinex/quotes_BTCUSD_20260125
["timestamp","ask_amount","ask_price","bid_price","bid_amount"]
[1769359598348,1.62491363,87853.0,87834.0,1.14191654]
[1769359598531,0.48030596,87853.0,87834.0,1.14191654]
[1769359598747,0.13646366,87858.0,87834.0,1.14191654]
[1769359598946,0.48030596,87853.0,87834.0,1.14191654]
[1769359599142,0.48030596,87851.0,87834.0,1.14191654]
[1769359599349,1.62491363,87850.0,87834.0,1.14191654]
[1769359599562,1.14460767,87849.0,87833.0,0.30318197]
[1769359603549,1.14460767,87849.0,87827.0,1.14191654]
[1769359603768,1.62491363,87847.0,87827.0,1.44959761]
[1769359603948,0.48030596,87847.0,87829.0,0.01138576]
[1769359604141,0.48030596,87847.0,87831.0,1.14191654]
[1769359604959,1.14460767,87846.0,87830.0,0.30768107]
[1769359606545,0.48030596,87843.0,87826.0,0.22058139]
[1769359606736,1.14460767,87842.0,87826.0,0.22058139]
[1769359607146,1.62491363,87842.0,87826.0,0.22058139]
[1769359607348,0.48030596,87842.0,87826.0,1.36249793]
[1769359607558,1.62491363,87842.0,87826.0,1.36249793]
[1769359608149,0.13646366,87859.0,87826.0,0.22058139]
[1769359608352,0.103609,87854.0,87826.0,0.22058139]
[1769359608594,0.48030596,87852.0,87826.0,0.22058139]
[1769359608765,0.48030596,87850.0,87826.0,0.00014139]
[1769359608968,1.14460767,87843.0,87826.0,0.17502139]
[1769359609191,0.13646366,87845.0,87826.0,0.17502139]
[1769359609192,0.48030596,87840.0,87826.0,0.17502139]
[1769359609399,0.48030596,87838.0,87826.0,0.17502139]
[1769359609606,1.14460767,87835.0,87826.0,0.17502139]
[1769359609914,1.62491363,87834.0,87826.0,0.17502139]
[1769359610114,1.62491363,87834.0,87826.0,0.17602139]
[1769359611279,0.48030596,87834.0,87826.0,0.17502139]
[1769359612748,0.48030596,87834.0,87826.0,0.00014139]
[1769359618600,1.14460767,87849.0,87826.0,1.14205793]
[1769359618796,1.14460767,87845.0,87826.0,1.14205793]
[1769359619031,1.14460767,87843.0,87826.0,1.14205793]
[1769359619227,1.14460767,87842.0,87826.0,1.14205793]
[1769359619522,1.14460767,87842.0,87826.0,0.00014139]
[1769359620909,0.48030596,87842.0,87826.0,0.00014139]
[1769359621111,1.14460767,87841.0,87826.0,0.00014139]
[1769359622521,1.14460767,87841.0,87826.0,0.00114139]
[1769359623552,0.48737827,87849.0,87830.0,1.14016347]
[1769359623747,1.05718171,87848.0,87830.0,1.12877784]
[1769359623946,1.05718171,87846.0,87830.0,0.01138563]
[1769359624174,1.05718171,87845.0,87829.0,0.45797609]
[1769359624407,1.05718171,87845.0,87831.0,0.0113855]
[1769359624614,1.05718171,87845.0,87829.0,0.45797609]
[1769359624839,1.05718171,87845.0,87831.0,0.0113855]
[1769359625299,1.05718171,87845.0,87830.0,0.46936172]
[1769359625531,1.05718171,87845.0,87830.0,0.45797609]
[1769359627207,1.05718171,87845.0,87830.0,0.46936172]
[1769359627419,1.05718171,87845.0,87831.0,0.0113855]
[1769359627874,0.48737827,87855.0,87838.0,1.14016243]
[1769359628110,0.17492,87865.0,87836.0,0.01138485]
[1769359628111,1.05718171,87860.0,87836.0,0.01138485]
[1769359628344,1.05718171,87856.0,87839.0,0.17492]
[1769359628557,0.43764961,87850.0,87827.0,1.12877784]
[1769359628778,0.48737827,87846.0,87828.0,0.22048]
[1769359628980,1.05718171,87845.0,87829.0,0.105045]
[1769359629098,0.11912972,87845.0,87829.0,0.105045]
[1769359629308,0.48737827,87844.0,87830.0,0.17492]
[1769359629521,0.4531904,87844.0,87830.0,0.18630563]
[1769359629724,0.38481466,87844.0,87830.0,0.18630563]
[1769359629961,0.35062679,87844.0,87830.0,0.18630563]
[1769359630212,0.35062679,87844.0,87831.0,1.14016334]
[1769359630213,0.31643892,87844.0,87831.0,1.14016334]
[1769359630353,0.377622,87878.0,87848.0,0.01138329]
[1769359630564,0.38022847,87875.0,87851.0,0.45797609]
[1769359630769,0.13646366,87877.0,87852.0,0.17492]
[1769359630770,0.48737827,87869.0,87852.0,0.17492]
[1769359630971,0.30092353,87866.0,87852.0,0.17492]
[1769359631178,0.4375536,87870.0,87842.0,0.46936016]
[1769359631179,0.30092353,87862.0,87842.0,1.58675393]
[1769359631382,0.13646366,87877.0,87836.0,0.01138485]
[1769359631383,0.48737827,87850.0,87836.0,0.04556]
[1769359631564,0.30092353,87849.0,87837.0,0.17492]
[1769359631782,0.7883018,87849.0,87837.0,0.17492]
[1769359631984,0.30092353,87848.0,87837.0,0.17492]
[1769359633765,0.30092353,87846.0,87838.0,0.17488]
[1769359633977,0.47946746,87860.0,87838.0,0.17488]
[1769359633978,0.30092353,87844.0,87838.0,0.17488]
[1769359635031,0.48737827,87845.0,87838.0,0.17488]
[1769359636294,0.30092353,87837.0,87834.0,0.17488]
[1769359636443,0.48278321,87836.0,87834.0,0.00303964]
[1769359636609,0.57939598,87836.0,87830.0,0.06389061]
[1769359636828,0.54520717,87836.0,87830.0,0.06389061]
[1769359637028,0.51101836,87836.0,87830.0,0.06389061]
[1769359637266,0.47682955,87836.0,87830.0,0.06389061]
[1769359637675,0.34602797,87836.0,87830.0,0.06389061]
[1769359637868,0.61358479,87841.0,87830.0,0.06389061]
[1769359638297,0.48278321,87841.0,87830.0,0.06389061]
[1769359638533,0.13080158,87859.0,87838.0,1.10773294]
[1769359638649,0.13080158,87859.0,87838.0,0.01138459]
[1769359638851,0.04556,87863.0,87843.0,0.01138394]
[1769359639119,0.04556,87863.0,87845.0,1.10773294]
[1769359639263,0.04556,87863.0,87850.0,0.01138303]
[1769359639462,0.04556,87863.0,87850.0,1.10773294]
[1769359639667,0.61358479,87870.0,87851.0,0.45343254]
[1769359640217,0.17492,87871.0,87844.0,0.62831254]
[1769359640425,0.17492,87871.0,87837.0,0.01138472]
[1769359640426,0.47957123,87860.0,87829.0,0.45343254]
[1769359640628,0.47957123,87860.0,87826.0,1.10787433]
[1769359640629,0.48278321,87856.0,87828.0,0.01138589]
[1769359640828,0.13080158,87853.0,87829.0,0.07284284]
[1769359641032,0.13646366,87863.0,87830.0,1.11911857]
[1769359641236,0.48278321,87860.0,87833.0,0.45343254]
[1769359641375,0.48278321,87858.0,87834.0,1.10773294]
[1769359641581,0.13080158,87855.0,87834.0,1.10773294]
[1769359641793,0.13646366,87869.0,87844.0,1.10773294]
[1769359641993,0.14449398,87869.0,87844.0,1.10773294]
[1769359642203,0.13080158,87867.0,87844.0,1.10773294]
[1769359642482,0.13080158,87863.0,87844.0,1.10773294]
[1769359642630,0.48278321,87869.0,87845.0,0.01138368]
[1769359642834,0.13080158,87865.0,87844.0,1.10773294]
[1769359643137,0.48278321,87862.0,87844.0,1.10773294]
[1769359643261,0.61358479,87861.0,87844.0,1.10773294]
[1769359643473,0.48278321,87866.0,87844.0,1.10773294]
[1769359643658,0.13080158,87863.0,87844.0,1.10773294]
[1769359643867,0.61358479,87861.0,87844.0,1.10773294]
[1769359644275,0.48278321,87859.0,87841.0,0.45343254]
[1769359644468,0.13080158,87856.0,87836.0,1.10773294]
[1769359644675,0.61358479,87855.0,87836.0,1.10773294]
[1769359644860,0.61358479,87855.0,87837.0,0.01138472]
[1769359645290,0.61358479,87855.0,87836.0,1.11911779]
[1769359645497,0.61358479,87855.0,87837.0,1.10773294]
[1769359645740,0.61358479,87855.0,87837.0,1.11911766]
[1769359645950,0.13080158,87854.0,87837.0,1.10773294]
[1769359646154,0.13048425,87854.0,87837.0,1.10773294]
[1769359646361,0.13048742,87852.0,87837.0,0.01138472]
[1769359646565,0.13048742,87858.0,87840.0,0.01138433]
[1769359646783,0.61327063,87858.0,87841.0,0.0113842]
[1769359646971,0.13646366,87868.0,87841.0,0.0113842]
[1769359647200,0.48278321,87868.0,87843.0,0.01138394]
[1769359647420,0.13048742,87867.0,87843.0,0.01138394]
[1769359647623,0.48278321,87864.0,87841.0,0.0113842]
[1769359647780,0.48278321,87860.0,87840.0,0.01138433]
[1769359647980,0.61295326,87859.0,87840.0,0.01138433]
[1769359648193,0.48278321,87859.0,87837.0,0.45343254]
[1769359648407,0.48278321,87859.0,87831.0,0.0113855]
[1769359648408,0.48278321,87855.0,87835.0,0.01138498]
[1769359648726,0.48278321,87853.0,87836.0,0.01138485]
[1769359648901,0.48246578,87853.0,87837.0,1.11911766]
[1769359649315,0.48183098,87853.0,87837.0,1.10773294]
[1769359649730,0.13646366,87869.0,87838.0,0.01138459]
[1769359649905,0.13646366,87869.0,87841.0,1.10773294]
[1769359650106,0.13017322,87867.0,87841.0,1.10773294]
[1769359650304,0.48278321,87864.0,87840.0,0.45343254]
[1769359650502,0.13017322,87861.0,87840.0,0.45343254]
[1769359650728,0.13017322,87859.0,87840.0,0.45343254]
[1769359650889,0.61295643,87858.0,87840.0,0.45343254]
[1769359652862,0.13017322,87857.0,87829.0,1.10773294]
[1769359653105,0.0001908,87859.0,87832.0,0.17488]
[1769359653106,0.13017322,87853.0,87832.0,0.17488]
[1769359653304,0.6038366,87851.0,87833.0,1.11753895]
[1769359653683,0.6038366,87851.0,87833.0,1.57219372]
[1769359654066,0.6038366,87851.0,87834.0,0.01138511]
[1769359654262,0.0001908,87859.0,87837.0,1.11753895]
[1769359654514,0.0001908,87859.0,87839.0,1.57219372]
[1769359654857,0.13017322,87858.0,87839.0,1.57219372]
[1769359655033,0.13017322,87857.0,87839.0,0.45465477]
[1769359655232,0.6038366,87857.0,87839.0,0.45465477]
[1769359655998,0.47366338,87857.0,87839.0,0.45465477]
[1769359656409,0.0001908,87859.0,87845.0,0.01138368]
[1769359656633,0.0001908,87859.0,87851.0,1.57219372]
[1769359658445,0.0001908,87859.0,87855.0,0.01138239]
[1769359658816,0.04556,87872.0,87860.0,1.57219372]
[1769359659624,0.04556,87872.0,87860.0,1.58357546]
[1769359659825,0.2447,87884.0,87865.0,0.45465477]
[1769359660036,0.00041484,87875.0,87865.0,1.57219372]
[1769359660395,0.00041484,87875.0,87863.0,0.01138135]
[1769359660396,0.2447,87884.0,87867.0,0.01138083]
[1769359660606,0.98277786,87887.0,87868.0,0.0113807]
[1769359660808,0.98277786,87887.0,87867.0,0.222359]
[1769359661025,0.98277786,87887.0,87869.0,1.57219372]
[1769359661226,0.98277786,87887.0,87869.0,1.57233566]
[1769359661849,0.47923952,87900.0,87869.0,1.57233566]
[1769359661850,0.13697427,87886.0,87869.0,0.45479671]
[1769359662071,0.61063765,87886.0,87869.0,0.45479671]
[1769359663002,0.61063765,87886.0,87870.0,1.11753895]
[1769359663413,0.61063765,87886.0,87870.0,1.57219372]
[1769359664205,0.13697427,87901.0,87873.0,1.11753895]
[1769359664409,0.13697427,87901.0,87876.0,0.45465477]
[1769359664410,0.47366338,87899.0,87876.0,0.45465477]
[1769359664606,0.13697427,87896.0,87877.0,1.11753895]
[1769359664817,0.47366338,87895.0,87877.0,1.11753895]
[1769359665179,0.47366338,87895.0,87876.0,0.45465477]
[1769359665393,0.18253427,87892.0,87877.0,0.01137954]
[1769359665614,0.04556,87892.0,87876.0,0.46603444]
[1769359665851,0.04556,87892.0,87878.0,0.45465477]
[1769359666060,0.04556,87892.0,87880.0,0.45465477]
[1769359666283,0.04556,87892.0,87882.0,1.57219372]
[1769359666713,0.04556,87892.0,87882.0,0.45465477]
[1769359666944,0.01,87882.0,87878.0,0.45465477]
[1769359667155,0.04556,87892.0,87878.0,0.45465477]
[1769359667786,0.04556,87892.0,87878.0,0.44465477]
[1769359669473,0.04556,87892.0,87878.0,1.56219372]
[1769359669886,0.04556,87892.0,87878.0,0.44465477]
[1769359670935,0.04556,87892.0,87871.0,0.24312172]
[1769359670936,0.13697427,87888.0,87871.0,0.17484]
[1769359671245,0.47366338,87885.0,87871.0,0.17484]
[1769359671761,0.13697427,87884.0,87871.0,0.17484]
[1769359672059,0.47366338,87885.0,87871.0,0.17484]
[1769359674141,0.04556,87892.0,87876.0,1.11753895]
[1769359674354,0.04556,87892.0,87874.0,0.01137993]
[1769359674562,0.04556,87892.0,87876.0,1.57219372]
[1769359674769,0.04556,87892.0,87878.0,0.01137941]
[1769359674980,0.04556,87892.0,87881.0,1.11753895]
[1769359676252,0.61773964,87899.0,87881.0,1.11753895]
[1769359676611,0.61773964,87899.0,87879.0,0.45465477]
[1769359676812,0.13646366,87898.0,87879.0,0.45465477]
[1769359678535,1.45644124,87894.0,87876.0,1.11753895]
[1769359678758,0.13646366,87898.0,87869.0,0.00014194]
[1769359679082,0.61063765,87889.0,87869.0,0.00014194]
[1769359679220,0.23677418,87888.0,87869.0,1.11768089]
[1769359679426,0.47366338,87889.0,87869.0,1.11768089]
[1769359679642,0.08767645,87888.0,87869.0,1.57233566]
[1769359679844,0.08767645,87888.0,87869.0,0.45479671]
[1769359680076,0.08816942,87887.0,87869.0,0.45479671]
[1769359680282,0.08816942,87886.0,87869.0,0.45479671]
[1769359680458,0.43728045,87880.0,87865.0,0.06157296]
[1769359680620,0.08816942,87877.0,87854.0,0.15284]
[1769359680822,0.5618328,87874.0,87855.0,0.01138239]
[1769359681028,0.47366338,87868.0,87854.0,0.06295979]
[1769359681268,0.47366338,87864.0,87850.0,0.01]
[1769359681463,0.08816942,87863.0,87850.0,0.01]
[1769359681671,0.08816942,87863.0,87850.0,0.07412006]
[1769359681672,0.05399308,87863.0,87850.0,0.07412006]
[1769359681867,0.05399308,87863.0,87850.0,0.01]
[1769359682108,0.00014904,87862.0,87850.0,0.01]
[1769359682484,0.00014904,87862.0,87854.0,0.001]
[1769359682898,0.00014904,87862.0,87850.0,0.02138303]
[1769359683530,0.00014904,87862.0,87851.0,0.0113829]
[1769359683648,0.00014904,87862.0,87850.0,0.02138303]
[1769359684244,0.46955241,87879.0,87856.0,1.09774223]
[1769359684491,0.13646366,87877.0,87862.0,0.00014904]
[1769359684685,0.46955241,87874.0,87862.0,0.00014904]
[1769359684894,0.09466715,87873.0,87858.0,0.49128464]
[1769359686465,0.09466715,87872.0,87855.0,0.01138239]
[1769359686679,0.46955241,87873.0,87861.0,0.01138161]
[1769359686886,0.46955241,87873.0,87854.0,0.01138252]
[1769359687118,0.09466715,87878.0,87860.0,0.49128464]
[1769359687287,0.13646366,87878.0,87860.0,1.58902687]
[1769359687517,0.09466715,87877.0,87860.0,1.58902687]
[1769359687729,0.56421956,87876.0,87860.0,0.50266638]
[1769359687985,0.09466715,87875.0,87860.0,0.49128464]
[1769359688169,0.09466715,87875.0,87860.0,0.50266638]
[1769359688831,0.09466715,87875.0,87860.0,0.49128464]
[1769359689409,0.09466715,87875.0,87860.0,0.4815076]
[1769359689549,0.09466715,87875.0,87860.0,0.48134894]
[1769359691741,0.09466715,87875.0,87861.0,0.01138161]
[1769359691923,0.22036,87879.0,87863.0,0.49128464]
[1769359692265,0.43755625,87880.0,87872.0,0.49128464]
[1769359692266,0.00014188,87880.0,87872.0,0.49128464]
[1769359693606,0.00014188,87880.0,87872.0,0.50266482]
[1769359693814,0.00014188,87880.0,87872.0,0.49128464]
[1769359694796,0.00014188,87880.0,87872.0,0.50266482]
[1769359695123,0.00014188,87880.0,87873.0,0.01138005]
[1769359695328,0.00014188,87880.0,87875.0,0.0113798]
[1769359695528,0.00014188,87880.0,87874.0,0.01137993]
[1769359696067,0.00014188,87880.0,87872.0,1.58372195]
[1769359696676,0.00014188,87880.0,87872.0,0.49128464]
[1769359697714,0.00014188,87880.0,87866.0,1.08105713]
[1769359698175,0.00014188,87880.0,87867.0,0.01138083]
[1769359698377,0.00014188,87880.0,87868.0,0.0113807]
[1769359699008,0.00014188,87880.0,87869.0,0.01138057]
[1769359699583,0.00014188,87880.0,87870.0,0.01138044]
[1769359699785,0.00014188,87880.0,87865.0,0.49057095]
[1769359699988,0.00014188,87880.0,87866.0,0.01138096]
[1769359700792,0.00014188,87880.0,87865.0,0.47918986]
[1769359701212,0.00014188,87880.0,87865.0,0.54747585]
[1769359701431,0.00014188,87880.0,87866.0,0.01138096]
[1769359701593,0.00014188,87880.0,87865.0,0.47918986]
[1769359701795,0.00014188,87880.0,87865.0,0.49057095]
[1769359701991,0.00014188,87880.0,87865.0,0.47918986]
[1769359702916,0.00014188,87880.0,87867.0,0.01138083]
[1769359703098,0.00014188,87880.0,87868.0,0.0113807]
[1769359703273,0.00014188,87880.0,87867.0,0.01138083]
[1769359703479,0.00014188,87880.0,87869.0,0.01138057]
[1769359703679,0.00014188,87880.0,87870.0,0.01138044]
[1769359704184,0.00014188,87880.0,87872.0,0.01138018]
[1769359704512,0.33936715,87887.0,87875.0,0.0113798]
[1769359704713,0.33936715,87887.0,87880.0,0.00014188]
[1769359704920,0.33936715,87887.0,87875.0,0.0113798]
[1769359705715,0.33936715,87887.0,87874.0,0.01137993]
[1769359705910,0.33936715,87887.0,87873.0,0.01138005]
[1769359706739,0.33936715,87887.0,87874.0,0.01137993]
[1769359707119,0.33936715,87887.0,87875.0,0.0113798]
[1769359707374,0.33936715,87887.0,87874.0,0.01137993]
[1769359707538,0.33936715,87887.0,87875.0,0.0113798]
[1769359708193,0.2447,87887.0,87878.0,0.01137941]
[1769359708406,0.2447,87887.0,87876.0,0.47918986]
[1769359708622,0.2447,87887.0,87876.0,0.49056953]
[1769359708982,0.2447,87887.0,87876.0,0.01137967]
[1769359709187,0.09494005,87891.0,87876.0,0.01137967]
[1769359709388,0.09466715,87890.0,87876.0,0.01137967]
[1769359709573,0.59174353,87889.0,87873.0,0.06311361]
[1769359709771,0.09466715,87888.0,87871.0,0.54747158]
[1769359709982,0.09466715,87887.0,87871.0,0.54747158]
[1769359710219,0.09466715,87887.0,87873.0,0.01138005]
[1769359710380,0.09466715,87887.0,87874.0,0.01137993]
[1769359710593,0.09466715,87887.0,87872.0,0.01138018]
[1769359711156,0.09466715,87887.0,87871.0,0.55395561]
[1769359711461,0.09466715,87887.0,87872.0,0.01138018]
[1769359711883,0.09466715,87887.0,87874.0,0.01137993]
[1769359712206,0.40752546,87888.0,87871.0,0.55395561]
[1769359712410,0.40847213,87888.0,87871.0,0.55395561]
[1769359712617,0.40847213,87888.0,87872.0,0.01138018]
[1769359713026,0.40863203,87888.0,87871.0,0.5425753]
[1769359713262,0.00094667,87887.0,87871.0,0.5425753]
[1769359713462,0.00094667,87886.0,87871.0,0.5425753]
[1769359713626,0.00094667,87885.0,87871.0,0.06338544]
[1769359713824,0.00094667,87885.0,87867.0,1.08105713]
[1769359714085,0.00094667,87885.0,87499.0,1.13091541]
[1769359714086,0.00094667,87883.0,87859.0,0.48569314]
[1769359714243,0.48061299,87880.0,87859.0,0.48569314]
[1769359714441,0.48061299,87880.0,87859.0,0.0639571]
[1769359714442,0.48061299,87873.0,87859.0,0.0639571]
[1769359714636,0.00094667,87870.0,87851.0,1.60778063]
[1769359714861,0.00094667,87869.0,87851.0,1.60778063]
[1769359715265,0.00094667,87869.0,87852.0,0.01138278]
[1769359715643,0.00094667,87869.0,87851.0,1.66915351]
[1769359715842,0.00094667,87869.0,87851.0,0.54706602]
[1769359716274,0.00094667,87869.0,87851.0,0.55844892]
[1769359716446,0.00094667,87869.0,87851.0,0.54706602]
[1769359716832,0.00094667,87869.0,87852.0,0.01138278]
[1769359717037,0.00094667,87867.0,87851.0,0.55844892]
[1769359717258,0.00094667,87867.0,87852.0,0.01138278]
[1769359717843,0.44737592,87868.0,87853.0,0.01138265]
[1769359718045,0.0001599,87878.0,87851.0,0.55844892]
[1769359718046,0.43749452,87863.0,87851.0,0.06137288]
[1769359718253,0.43749452,87863.0,87850.0,0.01]
[1769359718254,0.02090165,87860.0,87850.0,0.01]
[1769359718473,0.02090165,87859.0,87850.0,0.07141737]
[1769359718670,0.50151464,87859.0,87850.0,0.07141737]
[1769359718929,0.02090165,87858.0,87850.0,0.07141737]
[1769359719267,0.02090165,87857.0,87850.0,0.01]
[1769359719466,0.02090165,87857.0,87850.0,0.01047303]
[1769359720437,0.17328,87874.0,87850.0,0.01047303]
[1769359720438,0.50151464,87864.0,87850.0,0.01047303]
[1769359720667,0.02090165,87863.0,87850.0,0.01047303]
[1769359721654,0.43749452,87870.0,87851.0,0.48569314]
[1769359721875,0.43749452,87870.0,87852.0,0.48569314]
[1769359722208,0.02090165,87869.0,87852.0,0.48569314]
[1769359722807,0.48061299,87873.0,87853.0,0.05691318]
[1769359723120,0.70097299,87873.0,87857.0,0.48569314]
[1769359723315,0.15736531,87872.0,87857.0,0.48569314]
[1769359724082,0.02090165,87871.0,87857.0,0.48569314]
[1769359724507,0.22036,87873.0,87856.0,0.01138226]
[1769359724685,0.22036,87873.0,87859.0,1.12208749]
[1769359725044,0.22036,87873.0,87861.0,0.48569314]
[1769359725680,0.43749452,87890.0,87875.0,0.48569314]
[1769359725878,0.13646366,87888.0,87875.0,0.48569314]
[1769359726954,0.45839617,87900.0,87879.0,1.12208749]
[1769359727162,0.00803032,87899.0,87880.0,1.60778063]
[1769359727440,0.0002276,87905.0,87889.0,0.01137798]
[1769359727707,0.0002276,87905.0,87888.0,0.49707125]
[1769359727928,0.02112925,87905.0,87888.0,0.49707125]
[1769359728149,0.02112925,87905.0,87888.0,0.48569314]
[1769359728351,0.02090165,87904.0,87888.0,0.48569314]
[1769359728574,0.02090165,87903.0,87888.0,0.48569314]
[1769359729764,0.02090165,87899.0,87881.0,0.01137902]
[1769359729977,0.02090165,87899.0,87884.0,0.01137863]
[1769359730183,0.02090165,87899.0,87882.0,0.06827312]
[1769359730393,0.02090165,87899.0,87882.0,0.01137889]
[1769359730848,0.48061299,87899.0,87879.0,1.78262063]
[1769359731063,0.02090165,87896.0,87879.0,0.66053314]
[1769359731265,0.02090165,87894.0,87879.0,0.66053314]
[1769359731673,0.02090165,87894.0,87879.0,0.48569314]
[1769359733044,0.02090165,87894.0,87879.0,0.55396875]
[1769359733259,0.02090165,87894.0,87881.0,0.01137902]
[1769359733693,0.02090165,87894.0,87879.0,0.49707242]
[1769359733914,0.02090165,87894.0,87879.0,0.48569314]
[1769359734767,0.48061299,87895.0,87875.0,1.24159683]
[1769359734768,0.13646366,87892.0,87875.0,0.2374504]
[1769359734985,0.02090165,87888.0,87875.0,0.2374504]
[1769359735567,0.02090165,87888.0,87875.0,0.0626104]
[1769359735942,0.48061299,87883.0,87864.0,0.17484]
[1769359736073,0.02064237,87872.0,87864.0,0.00021113]
[1769359736273,0.02043335,87870.0,87853.0,0.48569314]
[1769359736494,0.02043335,87870.0,87858.0,0.00036948]
[1769359737199,0.46686595,87871.0,87858.0,0.00036948]
[1769359737592,0.00020433,87873.0,87858.0,0.00036948]
[1769359737778,0.00020433,87873.0,87858.0,0.48606262]
[1769359737996,0.48061299,87873.0,87858.0,0.00036948]
[1769359738456,0.48081732,87873.0,87858.0,0.00036948]
[1769359738907,0.13646366,87884.0,87859.0,0.00114417]
[1769359739077,0.48061299,87881.0,87858.0,0.00036948]
[1769359739277,0.00020433,87878.0,87858.0,0.01175148]
[1769359739483,0.00020433,87876.0,87858.0,0.01175148]
[1769359739809,0.00020433,87876.0,87858.0,0.00036948]
[1769359740355,0.48061299,87875.0,87858.0,0.00036948]
[1769359740540,0.00020433,87872.0,87858.0,0.00036948]
[1769359741354,0.61707665,87884.0,87863.0,1.12208749]
[1769359741535,0.48061299,87883.0,87863.0,1.60778063]
[1769359741744,0.38116366,87889.0,87868.0,0.48569314]
[1769359742008,0.2447,87889.0,87872.0,0.48569314]
[1769359742188,0.2447,87889.0,87874.0,0.48569314]
[1769359742799,0.00020433,87888.0,87867.0,1.12208749]
[1769359743111,0.00020433,87888.0,87868.0,0.48569314]
[1769359743914,0.00020433,87888.0,87870.0,0.45752826]
[1769359744117,0.00020433,87888.0,87871.0,0.45752826]
[1769359744438,0.00020433,87888.0,87871.0,0.46890857]
[1769359744963,0.00020433,87888.0,87871.0,0.45752826]
[1769359745179,0.00020433,87888.0,87872.0,0.45752826]
[1769359745360,0.00020433,87888.0,87872.0,0.01138018]
[1769359745571,0.00020433,87888.0,87873.0,0.45752826]
[1769359746954,0.00020433,87888.0,87873.0,0.46890831]
[1769359747356,0.00020433,87888.0,87874.0,0.45752826]
[1769359749679,0.2447,87889.0,87877.0,0.45752826]
[1769359750140,0.2447,87889.0,87878.0,1.12245106]
[1769359750262,0.2447,87889.0,87880.0,1.12245106]
[1769359750461,0.2447,87889.0,87883.0,0.45752826]
[1769359750713,0.18218799,87900.0,87883.0,0.45752826]
[1769359750915,0.00020433,87898.0,87883.0,0.45752826]
[1769359752888,0.13646366,87897.0,87883.0,0.45752826]
[1769359753087,0.00020433,87896.0,87877.0,1.1338306]
[1769359753241,0.00020433,87896.0,87878.0,0.45752826]
[1769359753448,0.00853632,87899.0,87879.0,0.01137928]
[1769359753654,0.43217736,87900.0,87885.0,0.45752826]
[1769359754033,0.00874065,87899.0,87885.0,0.45752826]
[1769359754842,0.00921368,87899.0,87885.0,0.45752826]
[1769359756275,0.00067736,87899.0,87885.0,0.45752826]
[1769359756700,0.00047303,87899.0,87886.0,0.45185089]
[1769359756872,0.00047303,87899.0,87888.0,0.45185089]
[1769359757371,0.00047303,87899.0,87889.0,1.12986731]
[1769359757538,0.00047303,87899.0,87889.0,1.5817182]
[1769359759814,0.00047303,87899.0,87889.0,0.45185089]
[1769359760280,0.00047303,87899.0,87880.0,0.01137915]
[1769359760281,0.00047303,87899.0,87891.0,0.45185089]
[1769359761131,0.00047303,87899.0,87886.0,0.45185089]
[1769359762714,0.00047303,87899.0,87887.0,1.12986731]
[1769359762934,0.00047303,87899.0,87888.0,0.01137811]
[1769359763141,0.00047303,87899.0,87887.0,1.14124555]
[1769359763590,0.00047303,87899.0,87886.0,0.45185089]
[1769359765545,0.00047303,87899.0,87886.0,0.46322926]
[1769359765747,0.00047303,87899.0,87886.0,0.45185089]
[1769359765997,0.00047303,87899.0,87886.0,0.46322926]
[1769359766197,0.00047303,87899.0,87886.0,0.45185089]
[1769359766498,0.00047303,87899.0,87886.0,0.46322926]
[1769359767080,0.00047303,87899.0,87887.0,0.01137824]
[1769359767986,0.00047303,87899.0,87886.0,0.46322926]
[1769359768192,0.00047303,87899.0,87887.0,0.01137824]
[1769359769308,0.00047303,87899.0,87886.0,1.59309657]
[1769359769640,0.00047303,87899.0,87891.0,0.45185089]
[1769359770179,0.00047303,87899.0,87887.0,0.01137824]
[1769359770386,0.00047303,87899.0,87888.0,0.01137811]
[1769359770590,0.00047303,87899.0,87890.0,0.45185089]
[1769359771193,0.00047303,87899.0,87891.0,0.01137772]
[1769359771398,0.14499998,87910.0,87891.0,0.01137772]
[1769359771399,0.00853632,87910.0,87891.0,0.01137772]
[1769359771570,0.00853632,87910.0,87890.0,0.01137785]
[1769359771571,0.0001856,87920.0,87900.0,0.43210555]
[1769359771771,0.13646366,87918.0,87902.0,0.45185089]
[1769359772013,0.13646366,87918.0,87903.0,0.45185089]
[1769359773512,0.00993812,87917.0,87903.0,0.45185089]
[1769359775273,0.43229115,87920.0,87903.0,0.45185089]
[1769359775274,0.13646366,87919.0,87903.0,0.45185089]
[1769359776343,0.43229115,87920.0,87903.0,0.45185089]
[1769359776485,0.13646366,87919.0,87903.0,0.45185089]
[1769359777719,0.0001856,87920.0,87905.0,0.45943178]
[1769359777920,0.0001856,87920.0,87908.0,1.10730965]
[1769359778157,0.0001856,87920.0,87909.0,0.45943178]
[1769359779576,0.43229115,87920.0,87909.0,0.45943178]
[1769359780815,0.42229115,87920.0,87909.0,0.45943178]
[1769359783301,0.46246081,87927.0,87909.0,0.45943178]
[1769359783501,0.13646366,87925.0,87909.0,0.45943178]
[1769359785792,0.46246081,87927.0,87909.0,0.45943178]
[1769359786129,0.13646366,87925.0,87909.0,0.45943178]
[1769359786544,0.03707118,87924.0,87909.0,0.45943178]
[1769359787087,0.43210555,87920.0,87909.0,0.45943178]
[1769359787534,0.43210555,87920.0,87900.0,0.00012373]
[1769359787535,0.46246081,87918.0,87900.0,0.00012373]
[1769359787748,0.13646366,87925.0,87900.0,0.00012373]
[1769359787749,0.03729878,87909.0,87900.0,0.00012373]
[1769359788246,0.03707118,87909.0,87900.0,0.00012373]
[1769359789167,0.00290574,87909.0,87900.0,0.00012373]
[1769359789589,0.43210555,87911.0,87900.0,0.00012373]
[1769359789961,0.46246081,87912.0,87900.0,0.00012373]
[1769359790944,0.4657082,87912.0,87900.0,0.00012373]
[1769359792410,0.00324739,87911.0,87900.0,0.00012373]
[1769359792767,0.43210555,87910.0,87900.0,0.00012373]
[1769359793189,0.0002276,87899.0,87880.0,0.0002958]
[1769359793378,0.0002276,87899.0,87885.0,0.1637358]
[1769359793773,0.00303303,87901.0,87885.0,0.62316758]
[1769359794001,0.00303303,87899.0,87885.0,0.1637358]
[1769359794216,0.83184758,87894.0,87885.0,0.10047303]
[1769359794891,0.13646366,87893.0,87863.0,0.0002958]
[1769359795058,0.43210555,87880.0,87865.0,0.45943178]
[1769359795218,0.31038098,87880.0,87865.0,0.45943178]
[1769359795423,0.46268442,87883.0,87865.0,0.45943178]
[1769359795607,0.00022361,87882.0,87865.0,0.45943178]
[1769359796015,0.00022361,87882.0,87866.0,0.01138096]
[1769359796235,0.00022361,87882.0,87865.0,0.45943178]
[1769359796736,0.00022361,87882.0,87866.0,1.10730965]
[1769359797098,0.00022361,87882.0,87867.0,0.47081261]
[1769359797277,0.60686555,87890.0,87871.0,1.10730965]
[1769359797278,0.63722081,87890.0,87871.0,1.10730965]
[1769359797476,0.63722081,87890.0,87872.0,0.45943178]
[1769359797681,0.63722081,87890.0,87868.0,0.0113807]
[1769359797682,0.43210555,87882.0,87859.0,0.45943178]
[1769359797881,0.00784803,87871.0,87863.0,0.0002958]
[1769359798081,0.470016,87870.0,87853.0,0.45943178]
[1769359798286,0.470016,87870.0,87853.0,0.52339324]